bitfinex-derivatives/quotes_SOLF0:USTF0_20241024
["timestamp","ask_amount","ask_price","bid_price","bid_amount"]
[1729777280408,2.8469,175.76,175.7,2.8478]
[1729777280710,1.2815,175.78,175.64,18.09536046]
[1729777280915,1.2815,175.78,175.65,2.27879649]
[1729777281105,1.2815,175.78,175.66,2.27879649]
[1729777281305,4.1282,175.78,175.71,2.8475]
[1729777281501,1.2815,175.78,175.66,1.13879]
[1729777281699,1.2815,175.78,175.67,2.27878087]
[1729777282008,2.8467,175.77,175.71,2.8475]
[1729777282507,4.1282,175.78,175.71,2.8476]
[1729777282708,1.2815,175.78,175.71,2.8476]
[1729777283415,1.2815,175.78,175.67,1.13879]
[1729777283416,1.2815,175.78,175.72,2.8474]
[1729777284010,4.1282,175.78,175.72,2.8474]
[1729777284517,9.28746047,176.01,175.7,17.49475955]
[1729777284713,1.1665,175.85,175.71,3.47865116]
[1729777284910,1.1665,175.85,175.72,2.27855116]
[1729777285113,18.66115955,175.87,175.73,2.27855116]
[1729777285315,2.8456,175.84,175.78,2.8464]
[1729777286010,2.8456,175.84,175.78,2.8465]
[1729777286815,18.66115955,175.87,175.73,2.26874]
[1729777287017,18.66115955,175.87,175.74,2.27801248]
[1729777287316,2.8458,175.83,175.75,2.27801248]
[1729777287612,2.8458,175.83,175.74,1.09974]
[1729777287613,18.66115955,175.87,175.76,2.27801248]
[1729777287814,18.66115955,175.87,175.74,1.09974]
[1729777288011,2.8457,175.84,175.78,2.8464]
[1729777288414,17.49475955,175.87,175.74,1.09974]
[1729777288611,2.8456,175.84,175.75,2.27805783]
[1729777288811,17.49475955,175.87,175.76,2.27805783]
[1729777289006,17.49475955,175.87,175.74,1.09974]
[1729777289210,1.1586,175.91,175.76,17.49475955]
[1729777289517,1.1586,175.91,175.79,17.49475955]
[1729777289709,4.00119369,175.91,175.84,2.8454]
[1729777289908,1.1586,175.91,175.79,11.85974]
[1729777290323,1.1586,175.91,175.8,3.70081141]
[1729777290621,1.1586,175.91,175.81,3.70081141]
[1729777290917,1.1586,175.91,175.82,3.70081141]
[1729777291112,1.1586,175.91,175.83,3.70081141]
[1729777291416,2.8445,175.91,175.86,2.8452]
[1729777291619,17.49475955,175.98,175.87,1.42324323]
[1729777291817,17.49475955,175.98,175.88,1.42324323]
[1729777292017,17.49475955,175.98,175.89,1.42289504]
[1729777292217,17.49475955,175.98,175.84,1.2651]
[1729777292218,17.49475955,175.98,175.87,1.09974]
[1729777292417,17.49475955,175.98,175.88,3.6994607]
[1729777292717,17.49475955,175.98,175.89,3.6994607]
[1729777293025,17.49475955,175.98,175.86,1.09974]
[1729777293315,1.1584,175.99,175.87,6.5449894]
[1729777293520,1.1584,175.99,175.88,6.5449894]
[1729777293727,1.1584,175.99,175.89,3.69936347]
[1729777293916,1.1584,175.99,175.9,3.69936347]
[1729777294116,1.1584,175.99,175.91,3.69936347]
[1729777294420,1.1584,175.99,175.92,1.42286273]
[1729777294620,1.1584,175.99,175.93,1.42286273]
[1729777294621,17.49475955,175.98,175.93,1.42286273]
[1729777294923,17.49475955,175.96,175.87,2.27669107]
[1729777295112,17.49475955,175.98,175.88,3.6995958]
[1729777295311,17.49475955,175.98,175.84,2.40265]
[1729777295312,2.8444,175.92,175.87,2.845]
[1729777295520,2.8444,175.92,175.88,1.42292045]
[1729777295821,2.8444,175.92,175.87,2.845]
[1729777296010,2.8444,175.92,175.88,1.42292493]
[1729777296215,2.8444,175.92,175.87,2.845]
[1729777296426,17.49475955,175.98,175.88,2.8448]
[1729777296717,17.49475955,175.98,175.84,2.36484]
[1729777296718,17.49475955,175.98,175.89,1.42289821]
[1729777296919,1.1584,175.99,175.86,1.09974]
[1729777297120,1.1584,175.99,175.87,3.69926586]
[1729777297419,2.8438,175.96,175.91,2.8443]
[1729777298112,1.1584,175.99,175.91,2.8443]
[1729777298316,1.1584,175.99,175.87,1.09974]
[1729777299121,1.1584,175.99,175.91,2.8443]
[1729777299720,2.8437,175.96,175.91,2.8443]
[1729777300118,1.1584,175.99,175.89,2.8447]
[1729777300318,1.1584,175.99,175.86,17.49475955]
[1729777300319,2.8437,175.96,175.86,17.49475955]
[1729777300525,1.1584,175.99,175.86,1.09978]
[1729777301027,1.1584,175.99,175.9,2.8446]
[1729777301723,1.1584,175.99,175.91,2.8444]
[1729777302626,1.1584,175.99,175.88,1.09974]
[1729777302929,1.1584,175.99,175.87,1.09974]
[1729777303317,2.8438,175.96,175.91,2.8443]
[1729777303913,9.28746047,176.01,175.88,18.59449955]
[1729777304125,2.8432,175.99,175.88,18.59449955]
[1729777304320,9.28746047,176.01,175.89,1.2309]
[1729777304714,2.8434,175.98,175.94,2.8439]
[1729777305318,2.8434,175.98,175.9,1.09981]
[1729777305715,2.8433,175.99,175.9,1.09981]
[1729777306027,9.28746047,176.01,175.9,1.09981]
[1729777306321,9.28746047,176.01,175.96,2.8436]
[1729777307123,9.28746047,176.01,175.92,1.09981]
[1729777307623,9.28746047,176.01,175.9,10.0]
[1729777307935,26.78222002,176.01,175.89,1.2309]
[1729777308819,26.78222002,176.01,175.89,2.368]
[1729777309420,26.78222002,176.01,175.89,1.2309]
[1729777309624,17.49475955,175.98,175.89,1.2309]
[1729777309830,17.49475955,175.98,175.88,2.8449]
[1729777310024,2.4456,175.97,175.88,2.8449]
[1729777310723,2.844,175.94,175.85,1.09981]
[1729777311328,17.49475955,175.98,175.85,1.09981]
[1729777311329,2.8432,175.99,175.88,17.49475955]
[1729777311631,9.28746047,176.01,175.89,1.1614]
[1729777311827,9.28746047,176.01,175.92,17.49475955]
[1729777312032,9.28746047,176.01,175.93,1.1854]
[1729777312330,9.28746047,176.01,176.0,2.843]
[1729777312524,9.28746047,176.01,175.96,9.62]
[1729777313128,9.28746047,176.01,175.96,10.71981]
[1729777313627,9.28746047,176.01,175.99,2.8431]
[1729777313830,9.28746047,176.01,175.96,10.71981]
[1729777314233,9.28746047,176.01,176.0,2.843]
[1729777314822,17.49475955,176.14,175.99,1.09981]
[1729777315026,2.4903,176.15,176.04,17.49475955]
[1729777315027,1.2712,176.15,176.04,17.49475955]
[1729777315230,1.2712,176.15,176.07,17.49475955]
[1729777315430,1.2712,176.15,176.09,2.8414]
[1729777315431,2.8409,176.14,176.09,2.8414]
[1729777315634,2.8190508,176.16,176.07,17.49475955]
[1729777315924,2.8405,176.16,176.11,2.8412]
[1729777316128,1.2712,176.21,176.07,17.49475955]
[1729777316331,1.2712,176.21,176.07,18.59515955]
[1729777317132,65.85675015,176.57,176.07,1.1004]
[1729777317331,17.49475955,176.31,176.13,17.49475955]
[1729777317537,17.49475955,176.28,176.13,9.62]
[1729777317838,2.8395,176.22,176.15,2.8406]
[1729777318143,2.4663,176.27,176.13,10.71996]
[1729777318338,2.8391,176.25,176.17,2.8402]
[1729777318632,2.4663,176.27,176.13,28.21471955]
[1729777318838,2.8396,176.22,176.14,9.62]
[1729777319033,19.96105955,176.27,176.13,1.09996]
[1729777319234,19.96105955,176.27,176.13,10.71996]
[1729777319737,2.8396,176.21,176.14,2.8407]
[1729777320034,17.49475955,176.21,176.1,1.09996]
[1729777320242,17.49475955,176.15,176.02,2.4684]
[1729777320439,17.49475955,176.18,176.02,1.2176]
[1729777320935,17.49475955,176.18,176.03,2.8425]
[1729777321128,10.8932,176.17,176.02,1.1]
[1729777321334,2.8413,176.11,176.02,1.1]
[1729777321533,17.49475955,176.14,176.02,1.13649]
[1729777321734,17.49475955,176.14,176.01,1.13649]
[1729777321935,2.8416,176.09,176.01,1.13649]
[1729777322135,2.8416,176.09,176.01,1.1]
[1729777322338,28.37845666,176.14,175.98,37.69845666]
[1729777322729,2.8418,176.08,175.98,37.39848666]
[1729777322934,28.37845666,176.14,175.98,37.39848666]
[1729777323233,2.8415,176.1,175.99,2.843]
[1729777323434,28.37845666,176.14,175.98,37.39848666]
[1729777323741,2.842,176.06,175.98,13.56323]
[1729777323940,28.37845666,176.11,175.98,10.72003]
[1729777324238,1.1794,176.1,175.96,9.62]
[1729777324439,2.8426,176.03,175.96,9.62]
[1729777324641,2.8426,176.03,175.95,14.9321]
[1729777324839,2.8426,176.03,175.94,3.98097]
[1729777324840,2.8425,176.03,175.94,3.98097]
[1729777325041,28.37845666,176.07,175.92,39.13552666]
[1729777325232,1.2296,176.06,175.92,39.09835666]
[1729777325440,28.37845666,176.04,175.92,10.7199]
[1729777325837,28.37845666,176.04,175.92,10.7572]
[1729777326044,2.8434,175.98,175.92,9.62]
[1729777326237,28.37845666,176.04,175.91,1.1]
[1729777326441,2.844,175.94,175.9,1.1]
[1729777326647,2.844,175.94,175.86,1.2187]
[1729777326648,28.37845666,175.98,175.86,10.4787]
[1729777326840,1.2728,175.97,175.86,1.2187]
[1729777327237,1.2728,175.97,175.84,10.4645]
[1729777327439,28.37845666,175.95,175.82,9.26]
[1729777327747,28.37845666,175.95,175.81,9.26]
[1729777328845,2.8448,175.9,175.82,2.8458]
[1729777329038,28.37845666,175.95,175.81,9.26]
[1729777329446,28.37845666,175.95,175.82,2.8458]
[1729777329639,28.37845666,175.95,175.81,9.26]
[1729777329840,1.2728,175.97,175.81,9.26]
[1729777329841,1.2728,175.97,175.82,29.55585666]
[1729777330150,2.8441,175.94,175.86,2.8452]
[1729777330445,1.2728,175.97,175.82,29.55585666]
[1729777330643,2.8444,175.91,175.82,29.55585666]
[1729777330839,28.37845666,175.96,175.82,29.55585666]
[1729777331647,2.843,176.0,175.93,2.844]
[1729777331846,30.77425666,176.07,175.92,1.10053]
[1729777332143,30.77425666,176.07,176.0,2.843]
[1729777332144,2.8421,176.06,176.0,2.843]
[1729777332352,1.1952,176.07,175.97,1.10053]
[1729777333340,2.8425,176.04,175.97,3.94403]
[1729777333550,1.1952,176.07,175.97,3.94403]
[1729777333844,2.8425,176.03,175.97,3.94403]
[1729777334247,1.1952,176.07,175.97,1.10053]
[1729777334552,2.8429,176.01,175.97,1.10053]
[1729777335054,2.8425,176.03,175.97,1.10053]
[1729777335250,1.1952,176.07,175.97,1.10053]
[1729777335547,2.8422,176.05,175.96,1.10053]
[1729777335755,2.8422,176.05,175.95,2.8436]
[1729777336149,2.8423,176.05,175.94,28.37845666]
[1729777336352,1.1952,176.07,175.94,29.47845666]
[1729777337149,29.57365666,176.07,175.94,1.1]
[1729777337456,2.8427,176.03,175.94,10.0]
[1729777337848,29.57365666,176.07,175.94,10.0]
[1729777338155,29.57905666,176.12,175.97,28.37845666]
[1729777338352,29.57905666,176.12,175.98,1.2132]
[1729777338846,29.57905666,176.12,175.98,2.31326]
[1729777339049,1.2362,176.16,176.0,28.37845666]
[1729777339249,1.2362,176.16,176.03,28.37845666]
[1729777339442,28.37845666,176.13,176.01,8.9]
[1729777339643,2.8415,176.1,176.01,11.7428]
[1729777339856,28.37845666,176.13,176.01,10.00006]
[1729777340947,28.37845666,176.13,176.01,1.10006]
[1729777341148,28.37845666,176.13,176.02,8.9]
[1729777341651,2.8414,176.11,176.02,12.87909]
[1729777341956,28.37845666,176.13,176.02,10.00006]
[1729777342152,8.9,176.15,176.01,1.13658]
[1729777342153,28.37845666,176.11,176.01,1.13658]
[1729777342350,28.37845666,176.11,175.99,8.9]
[1729777342551,2.8411,176.12,176.03,2.8424]
[1729777342752,2.8411,176.12,175.99,10.03658]
[1729777342753,28.37845666,176.14,175.99,10.03658]
[1729777342945,28.37845666,176.14,175.99,10.00012]
[1729777343151,2.8412,176.11,176.02,2.8426]
[1729777343451,28.37845666,176.14,175.99,8.9]
[1729777343650,1.2362,176.16,176.04,28.37845666]
[1729777343851,2.84,176.19,176.11,2.8411]
[1729777344055,28.37845666,176.23,176.11,1.13658]
[1729777344056,1.2811,176.22,176.11,1.13658]
[1729777344251,1.2811,176.22,176.11,1.09996]
[1729777345152,1.2811,176.22,176.1,9.99996]
[1729777345360,18.74196606,176.22,176.1,1.09996]
[1729777345546,18.74196606,176.22,176.07,8.54]
[1729777346147,18.74196606,176.22,176.07,9.6761]
[1729777346351,2.8407,176.15,176.07,9.64]
[1729777346546,28.38877443,176.2,176.07,9.64]
[1729777346755,28.38877443,176.2,176.07,1.1]
[1729777346956,2.8412,176.12,176.05,1.2129]
[1729777347152,28.38877443,176.16,176.05,1.2129]
[1729777347753,28.38877443,176.16,176.04,8.54]
[1729777348055,28.38877443,176.13,176.02,9.67642]
[1729777348565,28.38877443,176.13,176.02,9.64012]
[1729777349356,28.38877443,176.13,176.02,1.10012]
[1729777349562,28.38877443,176.09,175.98,1.1646]
[1729777349863,28.38877443,176.09,175.98,1.10018]
[1729777350263,2.8422,176.05,175.98,3.94338]
[1729777350466,28.38877443,176.09,175.98,1.10018]
[1729777350957,2.8422,176.05,175.98,1.10018]
[1729777351159,28.38877443,176.09,175.98,1.10018]
[1729777351362,56.6991,176.51,175.98,1.10018]
[1729777351363,8.57523954,176.29,176.07,28.38877443]
[1729777351559,28.38877443,176.24,176.08,8.54]
[1729777351862,2.8402,176.18,176.1,2.8412]
[1729777352062,31.20350666,176.24,176.1,2.8412]
[1729777352458,31.20350666,176.24,176.1,3.94132]
[1729777352769,28.38877443,176.18,176.1,1.10012]
[1729777352963,11.0001,176.17,176.01,28.38877443]
[1729777353165,11.0001,176.17,176.01,29.52526443]
[1729777353761,11.0001,176.17,176.01,28.38877443]
[1729777353967,11.0001,176.17,176.01,29.48883443]
[1729777354158,2.8414,176.1,176.03,2.8425]
[1729777354559,28.38877443,176.15,176.01,1.10006]
[1729777354771,28.38877443,176.15,176.02,2.8425]
[1729777355169,2.8415,176.1,176.03,2.8425]
[1729777355371,28.38877443,176.15,176.03,2.8425]
[1729777355766,28.38877443,176.15,176.03,3.94268]
[1729777355968,2.8415,176.1,176.03,2.8425]
[1729777356366,2.8415,176.1,176.03,3.94268]
[1729777356766,2.4601,176.17,176.03,1.10018]
[1729777356963,2.4601,176.17,176.05,28.38877443]
[1729777357364,2.8411,176.12,176.06,2.842]
[1729777357768,2.842,176.06,176.0,2.8429]
[1729777358073,8.54,176.1,176.0,1.09996]
[1729777358273,2.8418,176.08,176.0,2.843]
[1729777358478,8.54,176.11,176.0,2.843]
[1729777358674,8.54,176.11,176.0,1.09993]
[1729777358868,2.8423,176.05,176.0,1.09993]
[1729777359885,2.842,176.06,176.0,1.09993]
[1729777360181,2.842,176.06,176.0,3.94283]
[1729777360375,2.842,176.06,176.0,1.09993]
[1729777360576,8.54,176.11,176.01,2.8428]
[1729777360776,2.8419,176.07,176.01,2.8428]
[1729777360978,28.38877443,176.16,176.02,2.8426]
[1729777361182,2.8417,176.09,176.02,2.8426]
[1729777361479,8.54,176.15,176.02,3.94253]
[1729777361676,2.8418,176.08,176.02,3.94253]
[1729777361880,8.54,176.15,176.02,3.94253]
[1729777362181,8.54,176.15,176.02,1.09993]
[1729777362477,8.54,176.15,176.0,29.48870443]
[1729777362667,8.54,176.15,176.0,1.09993]
[1729777362869,2.8414,176.1,176.0,3.94283]
[1729777363069,1.2798,176.14,176.04,28.38877443]
[1729777363282,1.2798,176.14,176.01,8.54]
[1729777363283,2.4601,176.17,176.07,28.38877443]
[1729777363484,2.8407,176.14,176.08,2.8416]
[1729777363679,2.4601,176.17,176.07,29.48870443]
[1729777363879,5.3005,176.17,176.1,2.8413]
[1729777364079,5.3005,176.17,176.1,1.09993]
[1729777364378,2.4601,176.17,176.1,1.09993]
[1729777364575,2.8404,176.16,176.1,3.94123]
[1729777364776,2.4601,176.17,176.1,1.09993]
[1729777365169,1.2798,176.24,176.13,28.38877443]
[1729777365377,1.1892,176.23,176.13,28.38877443]
[1729777365575,2.8396,176.21,176.15,2.8406]
[1729777366280,2.8396,176.21,176.15,3.94053]
[1729777366480,1.1892,176.23,176.18,2.8399]
[1729777366686,1.1892,176.23,176.16,28.38877443]
[1729777366881,1.1892,176.23,176.13,28.38877443]
[1729777367181,1.1892,176.23,176.11,29.52448443]
[1729777367387,1.1892,176.23,176.11,28.38877443]
[1729777367577,1.1665,176.3,176.14,28.38877443]
[1729777367778,2.4509,176.29,176.18,28.38877443]
[1729777367983,2.8388,176.26,176.18,31.22877443]
[1729777368283,2.4509,176.29,176.18,29.48880443]
[1729777368473,2.8386,176.28,176.21,2.8396]
[1729777368674,1.1691,176.29,176.18,29.48880443]
[1729777368883,1.1691,176.29,176.18,29.48917443]
[1729777369885,1.1691,176.29,176.23,2.8391]
[1729777369886,4.0074,176.29,176.23,2.8391]
[1729777370080,8.54,176.32,176.21,28.38877443]
[1729777370384,67.0337,176.39,176.24,28.38877443]
[1729777370385,8.54,176.36,176.24,28.38877443]
[1729777370779,2.838,176.32,176.25,2.8389]
[1729777370974,1.1691,176.38,176.27,28.38877443]
[1729777371180,1.1691,176.38,176.25,1.1739]
[1729777371387,1.1691,176.38,176.25,2.2743]
[1729777371581,8.54,176.44,176.27,28.38877443]
[1729777371783,30.58687366,176.43,176.27,28.38877443]
[1729777371985,0.9401911,176.42,176.27,29.48917443]
[1729777372382,29.64667443,176.43,176.27,29.48917443]
[1729777372383,29.64667443,176.43,176.27,28.38877443]
[1729777372581,0.94023261,176.42,176.27,28.38877443]
[1729777372789,0.94023261,176.42,176.31,28.38877443]
[1729777372992,2.8367,176.4,176.33,2.8375]
[1729777373183,1.2579,176.44,176.31,36.92877443]
[1729777373581,2.8369,176.39,176.32,2.8377]
[1729777373984,2.8369,176.39,176.31,36.92877443]
[1729777373985,1.2579,176.44,176.31,36.92877443]
[1729777374194,1.2579,176.44,176.34,28.38877443]
[1729777374597,1.2579,176.44,176.32,2.8378]
[1729777374598,2.8365,176.41,176.32,2.8378]
[1729777374790,1.2579,176.44,176.31,8.54]
[1729777375090,29.64667443,176.44,176.3,28.38877443]
[1729777375294,29.64667443,176.44,176.28,8.26]
[1729777375793,29.64667443,176.44,176.28,11.0984]
[1729777376092,28.38877443,176.41,176.25,1.1739]
[1729777376295,28.38877443,176.37,176.24,28.38877443]
[1729777376592,1.1772,176.36,176.24,28.38877443]
[1729777377289,1.1772,176.36,176.24,29.48889443]
[1729777377587,2.838,176.32,176.25,2.8388]
[1729777377786,1.1772,176.36,176.27,28.38877443]
[1729777378092,2.8369,176.38,176.31,2.8379]
[1729777378296,8.26,176.39,176.3,28.38877443]
[1729777378787,8.26,176.39,176.3,29.48889443]
[1729777378987,1.417,176.43,176.31,2.8379]
[1729777379191,1.417,176.43,176.3,29.48889443]
[1729777379394,2.8367,176.4,176.31,2.8379]
[1729777379699,1.417,176.43,176.31,2.8379]
[1729777380001,2.8371,176.37,176.31,1.10021]
[1729777380188,1.417,176.43,176.31,1.10021]
[1729777380389,2.8371,176.37,176.31,1.10021]
[1729777380586,1.417,176.43,176.27,28.38877443]
[1729777380796,1.417,176.43,176.27,1.13478]
[1729777380990,28.38877443,176.38,176.27,1.13478]
[1729777381190,8.26,176.37,176.21,36.64877443]
[1729777381396,8.26,176.37,176.24,28.38877443]
[1729777381591,8.26,176.37,176.24,31.22777443]
[1729777381788,36.64877443,176.37,176.21,37.78355443]
[1729777381996,28.38877443,176.34,176.21,1.13526]
[1729777382193,2.6853,176.33,176.2,1.13526]
[1729777382501,2.6853,176.33,176.18,28.38877443]
[1729777382699,2.6853,176.33,176.18,29.48895443]
[1729777383199,2.6853,176.33,176.26,2.8388]
[1729777383200,2.838,176.32,176.26,2.8388]
[1729777383394,2.6853,176.33,176.24,28.38877443]
[1729777383594,1.3679,176.33,176.24,29.48895443]
[1729777383796,1.3679,176.33,176.28,2.8384]
[1729777384000,8.26,176.4,176.28,1.10018]
[1729777384300,2.8374,176.35,176.29,2.8383]
[1729777384495,2.8374,176.35,176.29,3.93848]
[1729777385404,1.4452,176.39,176.29,1.10018]
[1729777386098,1.4452,176.39,176.32,2.8378]
[1729777386403,1.4452,176.39,176.29,1.10018]
[1729777387294,2.8376,176.34,176.29,1.10018]
[1729777387493,1.4452,176.39,176.29,1.10018]
[1729777387903,1.4452,176.39,176.29,1.1352]
[1729777388204,1.4452,176.39,176.24,29.84417443]
[1729777388205,36.64877443,176.38,176.24,1.1352]
[1729777388401,36.64877443,176.38,176.23,9.615]
[1729777388600,28.38877443,176.35,176.23,1.10037]
[1729777388899,28.38877443,176.35,176.23,1.13539]
[1729777388900,2.839,176.25,176.23,1.13539]
[1729777389104,2.839,176.25,176.23,1.1004]
[1729777389399,2.8384,176.29,176.23,1.1004]
[1729777389607,36.64877443,176.38,176.23,1.1004]
[1729777390106,36.64877443,176.38,176.23,3.9396]
[1729777390299,28.38877443,176.31,176.06,343.0]
[1729777390496,2.8397,176.21,176.13,2.8409]
[1729777390697,2.8397,176.21,176.09,1.379]
[1729777390698,11.0395,176.3,176.15,28.38877443]
[1729777391301,11.0395,176.3,176.15,29.48898443]
[1729777391703,2.7795,176.3,176.15,29.48898443]
[1729777391899,8.26,176.29,176.18,28.38877443]
[1729777392294,8.26,176.29,176.18,29.48898443]
[1729777392900,2.8391,176.25,176.18,29.48898443]
[1729777393101,8.26,176.29,176.18,29.48898443]
[1729777393498,2.8387,176.27,176.18,32.32888443]
[1729777393699,2.7795,176.3,176.18,31.22867443]
[1729777394106,2.8391,176.24,176.18,28.38877443]
[1729777394603,2.7795,176.3,176.18,28.38877443]
[1729777395104,2.7795,176.3,176.19,1.4226]
[1729777395305,2.8387,176.27,176.2,2.8396]
[1729777395506,1.321,176.3,176.21,28.38877443]
[1729777396203,1.321,176.3,176.2,1.3418]
[1729777396404,2.8389,176.26,176.2,1.3418]
[1729777396600,1.321,176.3,176.2,1.3418]
[1729777397406,17.44469222,176.23,175.97,17.44469222]
[1729777397606,11.7202,176.22,176.01,4.1233]
[1729777397911,17.44469222,176.2,176.01,4.1233]
[1729777398125,1.3972,176.19,176.03,17.44469222]
[1729777398411,28.39988876,176.18,176.02,28.39988876]
[1729777398600,28.39988876,176.18,176.02,29.50031876]
[1729777398905,2.8417,176.08,176.02,29.50031876]
[1729777399307,28.39988876,176.15,176.02,1.10043]
[1729777399507,28.39988876,176.15,175.99,98.61988876]
[1729777399702,37.31988876,176.15,175.99,99.75676876]
[1729777399906,2.8412,176.12,176.02,28.39988876]
[1729777400100,8.92,176.15,176.02,29.50019876]
[1729777402013,37.31988876,176.15,176.02,1.10031]
[1729777402209,28.39988876,176.12,175.99,61.3]
[1729777402410,1.343,176.11,175.99,61.3]
[1729777402717,1.343,176.11,175.99,62.43694]
[1729777402907,1.343,176.11,175.99,62.40034]
[1729777402908,2.842,176.07,175.99,62.40034]
[1729777403314,8.92,176.15,176.0,28.39988876]
[1729777403515,2.8412,176.12,176.03,2.8425]
[1729777403817,8.92,176.15,176.03,3.94284]
[1729777404114,2.8419,176.07,175.99,61.3]
[1729777404319,2.8419,176.07,175.99,62.437]
[1729777404706,28.39988876,176.12,175.99,62.437]
[1729777405313,2.8417,176.09,175.99,62.437]
[1729777405517,28.39988876,176.12,175.99,62.437]
[1729777405909,2.8422,176.05,175.97,40.16318876]
[1729777406108,1.3897,176.11,175.97,41.26333876]
[1729777406308,1.3897,176.11,175.97,41.30015876]
[1729777406717,1.3897,176.11,175.97,38.45685876]
[1729777407217,1.3897,176.11,175.98,1.42143372]
[1729777407417,1.3897,176.11,176.02,2.8425]
[1729777407620,4.231,176.11,176.02,2.8425]
[1729777408118,1.3897,176.11,176.02,1.13697]
[1729777408514,1.3897,176.11,176.01,1.13697]
[1729777409313,2.8417,176.09,176.01,3.97967]
[1729777409521,1.343,176.16,176.06,28.39988876]
[1729777409822,70.26,176.21,176.06,28.39988876]
[1729777410023,2.1068,176.2,176.06,32.37875876]
[1729777410321,2.1068,176.2,176.04,8.92]
[1729777410520,2.1068,176.2,176.05,1.13697]
[1729777410820,28.39988876,176.15,176.0,28.39988876]
[1729777411019,10.6966,176.14,176.0,28.39988876]
[1729777411417,10.6966,176.14,176.0,29.50003876]
[1729777411819,8.56,176.14,176.02,28.39988876]
[1729777412126,8.56,176.14,176.05,28.39988876]
[1729777412717,8.56,176.14,176.05,29.50003876]
[1729777413322,28.39988876,176.07,175.77,343.0]
[1729777413528,95.6818,176.13,175.96,28.39988876]
[1729777413529,90.0,176.13,175.96,28.39988876]
[1729777413714,8.56,176.08,175.96,29.53692876]
[1729777413919,2.8417,176.08,175.96,32.38052876]
[1729777414213,8.56,176.1,175.97,2.2002]
[1729777414423,2.8423,176.05,175.97,2.2002]
[1729777414727,8.56,176.1,175.97,2.2002]
[1729777414728,8.56,176.1,175.97,3.30026]
[1729777414923,8.56,176.1,175.98,2.1012]
[1729777415918,8.56,176.1,175.98,3.2012]
[1729777416622,8.56,176.1,175.98,2.1012]
[1729777416818,2.842,176.07,175.98,2.1012]
[1729777417021,8.56,176.1,175.98,2.1012]
[1729777417424,8.56,176.1,175.98,3.2012]
[1729777418026,2.8423,176.05,175.98,3.2012]
[1729777418619,2.842,176.07,175.98,3.2012]
[1729777418822,8.56,176.1,175.98,3.2012]
[1729777419223,28.39988876,176.09,175.97,1.1]
[1729777419426,28.39988876,176.09,175.95,1.10012]
[1729777419618,28.39988876,176.09,175.92,4.26619834]
[1729777419920,28.39988876,176.09,175.92,1.42189834]
[1729777420223,8.56,176.1,175.94,17.47443232]
[1729777420425,26.03443232,176.1,175.94,17.47443232]
[1729777420626,26.03443232,176.1,175.94,18.57455232]
[1729777421022,2.8423,176.05,175.94,18.57455232]
[1729777421218,26.03443232,176.1,175.96,2.8436]
[1729777421427,26.03443232,176.1,175.94,18.57455232]
[1729777421614,2.8423,176.05,175.95,1.42179841]
[1729777421819,26.03443232,176.1,175.97,2.8434]
[1729777422215,2.8423,176.05,175.97,2.8434]
[1729777422426,2.8423,176.05,175.97,3.94352]
[1729777422726,2.8421,176.06,175.97,1.10012]
[1729777423126,26.03443232,176.1,175.98,2.8433]
[1729777423322,26.03443232,176.1,175.98,3.94342]
[1729777423528,26.03443232,176.1,175.94,17.47443232]
[1729777423726,2.8423,176.05,175.94,18.57455232]
[1729777424328,2.8423,176.05,175.97,2.8434]
[1729777424920,26.03443232,176.1,175.97,2.8434]
[1729777425124,2.8424,176.04,175.97,2.8434]
[1729777425630,2.8427,176.03,175.96,2.8436]
[1729777425829,26.03443232,176.1,175.94,18.57436232]
[1729777426026,26.03443232,176.1,175.94,17.47443232]
[1729777426428,26.03443232,176.1,175.94,18.61150232]
[1729777426629,26.03443232,176.1,175.94,18.57436232]
[1729777426833,2.8422,176.06,175.98,2.8433]